[Event "Late-Titled-Tuesday-Blitz-May-28-2024"]
[Site "Chess.com"]
[Date "2024.05.28"]
[Round "2"]
[White "Flaccidmoves"]
[Black "VirtualCoach"]
[Result "1-0"]
[WhiteElo "2484"]
[BlackElo "2195"]
[TimeControl "180+1"]
[EndTime "14:18:21 PDT"]
[Termination "Flaccidmoves won on time"]

1. c4 {[%clk 0:02:48.6]} 1... c5 {[%clk 0:02:56.3]} 2. Nc3 {[%clk 0:02:45.7]}
2... Nc6 {[%clk 0:02:55.4]} 3. e3 {[%clk 0:02:45.7]} 3... e5 {[%clk 0:02:49.8]}
4. Nf3 {[%clk 0:02:43.4]} 4... Nf6 {[%clk 0:02:41.3]} 5. d4 {[%clk 0:02:42.5]}
5... e4 {[%clk 0:02:41.3]} 6. Ng5 {[%clk 0:02:14.6]} 6... cxd4 {[%clk
0:02:36.3]} 7. exd4 {[%clk 0:02:13.6]} 7... Qe7 {[%clk 0:02:21]} 8. d5 {[%clk
0:02:08.6]} 8... Nb4 {[%clk 0:02:16.4]} 9. Be3 {[%clk 0:01:53]} 9... h6 {[%clk
0:02:12.5]} 10. Nh3 {[%clk 0:01:52.4]} 10... d6 {[%clk 0:01:55.8]} 11. a3 {[%clk
0:01:40.4]} 11... Na6 {[%clk 0:01:53.8]} 12. Nf4 {[%clk 0:01:26.8]} 12... Ng4
{[%clk 0:01:51]} 13. Bd4 {[%clk 0:01:16]} 13... e3 {[%clk 0:01:13.8]} 14. Bxe3
{[%clk 0:00:44.6]} 14... Nxe3 {[%clk 0:01:11.7]} 15. fxe3 {[%clk 0:00:45.5]}
15... Qxe3+ {[%clk 0:01:11.1]} 16. Qe2 {[%clk 0:00:46.2]} 16... Qxe2+ {[%clk
0:01:09.3]} 17. Bxe2 {[%clk 0:00:47.1]} 17... Be7 {[%clk 0:01:05.9]} 18. b4
{[%clk 0:00:46.4]} 18... Bf6 {[%clk 0:00:53.8]} 19. Rc1 {[%clk 0:00:46.1]} 19...
Bg5 {[%clk 0:00:43.7]} 20. O-O {[%clk 0:00:42.1]} 20... Bd7 {[%clk 0:00:41.6]}
21. Ne4 {[%clk 0:00:41.3]} 21... Be7 {[%clk 0:00:36.7]} 22. c5 {[%clk
0:00:38.2]} 22... dxc5 {[%clk 0:00:16.6]} 23. bxc5 {[%clk 0:00:29.3]} 23... O-O
{[%clk 0:00:16.6]} 24. Bxa6 {[%clk 0:00:26.9]} 24... bxa6 {[%clk 0:00:16]} 25.
d6 {[%clk 0:00:27.1]} 25... Bd8 {[%clk 0:00:14.7]} 26. c6 {[%clk 0:00:27.1]}
26... Bf5 {[%clk 0:00:14.7]} 27. Ng3 {[%clk 0:00:20.3]} 27... Bb6+ {[%clk
0:00:14.4]} 28. Kh1 {[%clk 0:00:21]} 28... Bg4 {[%clk 0:00:12.7]} 29. h3 {[%clk
0:00:20.5]} 29... Be6 {[%clk 0:00:07.3]} 30. Nxe6 {[%clk 0:00:20.1]} 30... fxe6
{[%clk 0:00:08.1]} 31. c7 {[%clk 0:00:19.1]} 31... Rfc8 {[%clk 0:00:04]} 32. Ne4
{[%clk 0:00:13.8]} 32... Ba5 {[%clk 0:00:02.1]} 33. Rfd1 {[%clk 0:00:10.8]} 1-0

[Event "Late-Titled-Tuesday-Blitz-May-28-2024"]
[Site "Chess.com"]
[Date "2024.05.28"]
[Round "2"]
[White "GAZZAN_3000"]
[Black "janhelmer03"]
[Result "1-0"]
[WhiteElo "2676"]
[BlackElo "2397"]
[TimeControl "180+1"]
[EndTime "14:18:23 PDT"]
[Termination "GAZZAN_3000 won on time"]

1. d4 {[%clk 0:03:00.9]} 1... d5 {[%clk 0:02:18.6]} 2. c4 {[%clk 0:02:58.6]}
2... e6 {[%clk 0:02:17.7]} 3. Nf3 {[%clk 0:02:56.2]} 3... Nf6 {[%clk 0:02:17.6]}
4. Nc3 {[%clk 0:02:54]} 4... c6 {[%clk 0:02:16.1]} 5. Bg5 {[%clk 0:02:50.5]}
5... h6 {[%clk 0:02:13.5]} 6. Bh4 {[%clk 0:02:50.1]} 6... Be7 {[%clk 0:02:13.4]}
7. e3 {[%clk 0:02:49.8]} 7... Nbd7 {[%clk 0:02:13.9]} 8. Bd3 {[%clk 0:02:43.6]}
8... O-O {[%clk 0:02:12.2]} 9. O-O {[%clk 0:02:43.1]} 9... dxc4 {[%clk
0:02:11.8]} 10. Bxc4 {[%clk 0:02:42.2]} 10... b5 {[%clk 0:02:12.2]} 11. Bd3
{[%clk 0:02:40.8]} 11... Bb7 {[%clk 0:02:08.1]} 12. Rc1 {[%clk 0:02:22.9]} 12...
a6 {[%clk 0:02:04.1]} 13. Ne2 {[%clk 0:02:10.1]} 13... c5 {[%clk 0:02:00.2]} 14.
Ng3 {[%clk 0:02:01.9]} 14... cxd4 {[%clk 0:01:53.2]} 15. Nxd4 {[%clk 0:01:58.7]}
15... Ne5 {[%clk 0:01:48.1]} 16. Be2 {[%clk 0:01:52.6]} 16... Qd5 {[%clk
0:01:44.3]} 17. f3 {[%clk 0:01:25.7]} 17... Rac8 {[%clk 0:01:27.7]} 18. Bxf6
{[%clk 0:01:18.6]} 18... Bxf6 {[%clk 0:01:19.3]} 19. Ne4 {[%clk 0:01:12.2]}
19... Be7 {[%clk 0:01:18.1]} 20. Nc3 {[%clk 0:01:10.2]} 20... Qd7 {[%clk
0:01:14.2]} 21. f4 {[%clk 0:01:07.4]} 21... Nc4 {[%clk 0:01:09.6]} 22. Bxc4
{[%clk 0:01:06.8]} 22... Rxc4 {[%clk 0:01:05.4]} 23. Nf5 {[%clk 0:01:00.4]}
23... Qc7 {[%clk 0:01:05.1]} 24. Nxe7+ {[%clk 0:00:59.7]} 24... Qxe7 {[%clk
0:01:05]} 25. Qd2 {[%clk 0:00:51.1]} 25... Rd8 {[%clk 0:01:04.1]} 26. Qf2 {[%clk
0:00:51.2]} 26... Rdc8 {[%clk 0:01:02.5]} 27. Ne2 {[%clk 0:00:49.5]} 27... Rxc1
{[%clk 0:01:01.9]} 28. Rxc1 {[%clk 0:00:50]} 28... Rxc1+ {[%clk 0:01:02.4]} 29.
Nxc1 {[%clk 0:00:50.6]} 29... Qc5 {[%clk 0:01:02.8]} 30. Qd2 {[%clk 0:00:50.2]}
30... Be4 {[%clk 0:00:57.4]} 31. a3 {[%clk 0:00:48.8]} 31... Qc4 {[%clk
0:00:56.2]} 32. Ne2 {[%clk 0:00:48]} 32... Qc6 {[%clk 0:00:48.2]} 33. Nc3 {[%clk
0:00:47.1]} 33... Kh7 {[%clk 0:00:41.6]} 34. h3 {[%clk 0:00:44.1]} 34... f5
{[%clk 0:00:28.2]} 35. Kh2 {[%clk 0:00:43.4]} 35... Qc4 {[%clk 0:00:22.6]} 36.
Qe2 {[%clk 0:00:30.2]} 36... Bd3 {[%clk 0:00:18.4]} 37. Qd2 {[%clk 0:00:29.5]}
37... Be4 {[%clk 0:00:18.6]} 38. Ne2 {[%clk 0:00:25.9]} 38... Bd5 {[%clk
0:00:16.1]} 39. Nd4 {[%clk 0:00:23.9]} 39... Qf1 {[%clk 0:00:12.9]} 40. Nxf5
{[%clk 0:00:19.7]} 40... Bxg2 {[%clk 0:00:09.5]} 41. Ng3 {[%clk 0:00:18.1]}
41... Qf3 {[%clk 0:00:02.4]} 42. Qxg2 {[%clk 0:00:18]} 1-0

[Event "Late-Titled-Tuesday-Blitz-May-28-2024"]
[Site "Chess.com"]
[Date "2024.05.28"]
[Round "2"]
[White "SRob2003"]
[Black "KebabJangles"]
[Result "1-0"]
[WhiteElo "2672"]
[BlackElo "2278"]
[TimeControl "180+1"]
[EndTime "14:18:25 PDT"]
[Termination "SRob2003 won by checkmate"]

1. Nf3 {[%clk 0:03:00.9]} 1... c5 {[%clk 0:02:57.1]} 2. e4 {[%clk 0:02:58.3]}
2... e6 {[%clk 0:02:56.5]} 3. d4 {[%clk 0:02:57.6]} 3... cxd4 {[%clk 0:02:56.3]}
4. Nxd4 {[%clk 0:02:58.5]} 4... a6 {[%clk 0:02:54]} 5. c4 {[%clk 0:02:57.6]}
5... Nf6 {[%clk 0:02:50.4]} 6. Nc3 {[%clk 0:02:57.7]} 6... Bb4 {[%clk
0:02:49.9]} 7. Qd3 {[%clk 0:02:53.7]} 7... Qc7 {[%clk 0:02:44.3]} 8. f3 {[%clk
0:02:44.4]} 8... O-O {[%clk 0:02:43.5]} 9. a3 {[%clk 0:02:24.7]} 9... Be7 {[%clk
0:02:20.6]} 10. Be3 {[%clk 0:02:20.9]} 10... Nc6 {[%clk 0:02:19.6]} 11. Nxc6
{[%clk 0:02:13.4]} 11... dxc6 {[%clk 0:02:17.8]} 12. c5 {[%clk 0:02:02.1]} 12...
e5 {[%clk 0:02:16.5]} 13. Qc2 {[%clk 0:01:51.8]} 13... Be6 {[%clk 0:02:13]} 14.
Be2 {[%clk 0:01:50.1]} 14... Nh5 {[%clk 0:02:08.3]} 15. O-O {[%clk 0:01:46.5]}
15... Nf4 {[%clk 0:02:07.7]} 16. Rfd1 {[%clk 0:01:46.7]} 16... Rad8 {[%clk
0:02:06.2]} 17. Bf1 {[%clk 0:01:46.1]} 17... f5 {[%clk 0:01:53.1]} 18. b4 {[%clk
0:01:41.9]} 18... Kh8 {[%clk 0:01:49.5]} 19. Rxd8 {[%clk 0:01:36.7]} 19... Bxd8
{[%clk 0:01:45.4]} 20. Rd1 {[%clk 0:01:35.3]} 20... Bg5 {[%clk 0:01:44.8]} 21.
Bf2 {[%clk 0:01:33.4]} 21... Be7 {[%clk 0:01:42.5]} 22. Qb2 {[%clk 0:01:16.4]}
22... fxe4 {[%clk 0:01:36.6]} 23. Nxe4 {[%clk 0:01:17.3]} 23... Bd5 {[%clk
0:01:36.2]} 24. Re1 {[%clk 0:01:05.9]} 24... Bf6 {[%clk 0:01:20.5]} 25. Bg3
{[%clk 0:00:55.8]} 25... Ne6 {[%clk 0:01:11.9]} 26. Nxf6 {[%clk 0:00:54.3]}
26... gxf6 {[%clk 0:01:12.8]} 27. Rxe5 {[%clk 0:00:53.3]} 27... Qg7 {[%clk
0:00:56.9]} 28. Rh5 {[%clk 0:00:45.6]} 28... Ng5 {[%clk 0:00:48.8]} 29. Bd3
{[%clk 0:00:37.9]} 29... Re8 {[%clk 0:00:40]} 30. Kf1 {[%clk 0:00:21.1]} 30...
Kg8 {[%clk 0:00:22.3]} 31. Bh4 {[%clk 0:00:16.8]} 31... Nxf3 {[%clk 0:00:13.2]}
32. gxf3 {[%clk 0:00:15.2]} 32... Bxf3 {[%clk 0:00:13]} 33. Rxh7 {[%clk
0:00:12.3]} 33... Qg4 {[%clk 0:00:08.4]} 34. Bxf6 {[%clk 0:00:10.4]} 34... Kf8
{[%clk 0:00:05.6]} 35. Rh8+ {[%clk 0:00:08.5]} 35... Kf7 {[%clk 0:00:05.5]} 36.
Bg6+ {[%clk 0:00:08.4]} 36... Qxg6 {[%clk 0:00:04.3]} 37. Rxe8 {[%clk
0:00:05.3]} 37... Kxe8 {[%clk 0:00:05.2]} 38. Qe5+ {[%clk 0:00:05.4]} 38... Kf7
{[%clk 0:00:05.8]} 39. Qe7+ {[%clk 0:00:04]} 39... Kg8 {[%clk 0:00:06.3]} 40.
Qd8+ {[%clk 0:00:04.4]} 40... Kh7 {[%clk 0:00:06.4]} 41. Qh8# {[%clk 0:00:04.6]}
1-0

[Event "Late-Titled-Tuesday-Blitz-May-28-2024"]
[Site "Chess.com"]
[Date "2024.05.28"]
[Round "2"]
[White "MikeSailer"]
[Black "giomar27"]
[Result "0-1"]
[WhiteElo "2111"]
[BlackElo "2459"]
[TimeControl "180+1"]
[EndTime "14:18:29 PDT"]
[Termination "giomar27 won on time"]

1. d4 {[%clk 0:03:00.1]} 1... c5 {[%clk 0:02:59.6]} 2. e3 {[%clk 0:02:56.8]}
2... d5 {[%clk 0:02:55.9]} 3. Nf3 {[%clk 0:02:57.3]} 3... Nc6 {[%clk 0:02:55.4]}
4. Bd3 {[%clk 0:02:43.3]} 4... Nf6 {[%clk 0:02:55]} 5. b3 {[%clk 0:02:43.3]}
5... Bg4 {[%clk 0:02:50]} 6. Bb2 {[%clk 0:02:41.4]} 6... e6 {[%clk 0:02:49.5]}
7. Nbd2 {[%clk 0:02:40.9]} 7... Rc8 {[%clk 0:02:48.6]} 8. O-O {[%clk 0:02:38.7]}
8... cxd4 {[%clk 0:02:47.7]} 9. exd4 {[%clk 0:02:36.7]} 9... Bd6 {[%clk
0:02:47.8]} 10. a3 {[%clk 0:02:28.3]} 10... O-O {[%clk 0:02:47.9]} 11. Qe1
{[%clk 0:02:28.1]} 11... Qc7 {[%clk 0:02:46.8]} 12. h3 {[%clk 0:02:22.1]} 12...
Bh5 {[%clk 0:02:44.2]} 13. Rc1 {[%clk 0:02:21.6]} 13... Qb8 {[%clk 0:02:38.1]}
14. c4 {[%clk 0:02:18.1]} 14... dxc4 {[%clk 0:02:36.9]} 15. bxc4 {[%clk
0:02:17.4]} 15... Nd7 {[%clk 0:02:08.6]} 16. d5 {[%clk 0:02:12.5]} 16... exd5
{[%clk 0:02:07.2]} 17. cxd5 {[%clk 0:02:12.9]} 17... Nce5 {[%clk 0:02:06.6]} 18.
Nxe5 {[%clk 0:02:12.2]} 18... Nxe5 {[%clk 0:02:05.2]} 19. Rxc8 {[%clk
0:02:03.4]} 19... Rxc8 {[%clk 0:02:04.9]} 20. Bb1 {[%clk 0:02:01.2]} 20... Re8
{[%clk 0:02:03.6]} 21. Qc1 {[%clk 0:01:50.3]} 21... Be2 {[%clk 0:01:59.2]} 22.
Re1 {[%clk 0:01:45.5]} 22... Nd3 {[%clk 0:01:59.4]} 23. Bxd3 {[%clk 0:01:41.4]}
23... Bxd3 {[%clk 0:02:00.3]} 24. Rxe8+ {[%clk 0:01:39.3]} 24... Qxe8 {[%clk
0:02:01.2]} 25. Bxg7 {[%clk 0:01:21.5]} 25... Qe2 {[%clk 0:01:09.3]} 26. Bh6
{[%clk 0:00:58.6]} 26... f5 {[%clk 0:00:59.5]} 27. Qc8+ {[%clk 0:00:51]} 27...
Kf7 {[%clk 0:00:59.5]} 28. Qd7+ {[%clk 0:00:43.5]} 28... Qe7 {[%clk 0:00:58]}
29. Qxe7+ {[%clk 0:00:37]} 29... Kxe7 {[%clk 0:00:58.2]} 30. Be3 {[%clk
0:00:35.9]} 30... b6 {[%clk 0:00:55]} 31. a4 {[%clk 0:00:31.4]} 31... Bc2 {[%clk
0:00:52.9]} 32. Nc4 {[%clk 0:00:30]} 32... Bxa4 {[%clk 0:00:49.8]} 33. Nxb6
{[%clk 0:00:14.7]} 33... axb6 {[%clk 0:00:48.8]} 34. Bxb6 {[%clk 0:00:15]} 34...
Bb3 {[%clk 0:00:49]} 35. Be3 {[%clk 0:00:14.7]} 35... Bxd5 {[%clk 0:00:48.9]}
36. f4 {[%clk 0:00:14.2]} 36... h5 {[%clk 0:00:42.5]} 37. Kf2 {[%clk 0:00:11.5]}
37... Kf6 {[%clk 0:00:40.4]} 38. Bd4+ {[%clk 0:00:11.3]} 38... Kg6 {[%clk
0:00:39.2]} 39. Kg3 {[%clk 0:00:09.4]} 39... h4+ {[%clk 0:00:33.7]} 40. Kxh4
{[%clk 0:00:04.5]} 40... Bxf4 {[%clk 0:00:34.4]} 41. g4 {[%clk 0:00:03.3]} 41...
Bg5+ {[%clk 0:00:32.3]} 42. Kg3 {[%clk 0:00:03.8]} 42... f4+ {[%clk 0:00:32.8]}
43. Kf2 {[%clk 0:00:04.4]} 43... Bh4+ {[%clk 0:00:32.6]} 44. Kf1 {[%clk
0:00:03.2]} 44... f3 {[%clk 0:00:32.8]} 45. Be3 {[%clk 0:00:03.1]} 45... Kf6
{[%clk 0:00:30.3]} 46. Bd4+ {[%clk 0:00:02.3]} 46... Ke6 {[%clk 0:00:30.3]} 0-1

[Event "Late-Titled-Tuesday-Blitz-May-28-2024"]
[Site "Chess.com"]
[Date "2024.05.28"]
[Round "2"]
[White "h4parah5"]
[Black "BabageldiAnnaberdiyev"]
[Result "1-0"]
[WhiteElo "2991"]
[BlackElo "2590"]
[TimeControl "180+1"]
[EndTime "14:18:30 PDT"]
[Termination "h4parah5 won by resignation"]

1. Nf3 {[%clk 0:03:00.9]} 1... e6 {[%clk 0:03:00.6]} 2. b3 {[%clk 0:03:00.7]}
2... d5 {[%clk 0:03:00.2]} 3. Bb2 {[%clk 0:03:00.7]} 3... f5 {[%clk 0:03:00.7]}
4. c4 {[%clk 0:02:59.5]} 4... Nf6 {[%clk 0:03:01.1]} 5. g3 {[%clk 0:02:57.1]}
5... c6 {[%clk 0:03:00]} 6. Bg2 {[%clk 0:02:56.7]} 6... a5 {[%clk 0:02:59.5]} 7.
Nc3 {[%clk 0:02:47.6]} 7... Bd6 {[%clk 0:02:58.6]} 8. O-O {[%clk 0:02:46.1]}
8... O-O {[%clk 0:02:58.5]} 9. Rc1 {[%clk 0:02:42.8]} 9... Na6 {[%clk
0:02:46.7]} 10. d3 {[%clk 0:02:37.6]} 10... e5 {[%clk 0:02:36.4]} 11. cxd5
{[%clk 0:02:35.9]} 11... cxd5 {[%clk 0:02:37.3]} 12. Nb5 {[%clk 0:02:34.4]}
12... e4 {[%clk 0:02:31.8]} 13. Ne5 {[%clk 0:02:32]} 13... Be6 {[%clk
0:02:23.6]} 14. Nxd6 {[%clk 0:02:23.3]} 14... Qxd6 {[%clk 0:02:22.3]} 15. Qd2
{[%clk 0:02:21.9]} 15... Nb4 {[%clk 0:02:18.3]} 16. Bd4 {[%clk 0:02:16.5]} 16...
Rfd8 {[%clk 0:02:12.2]} 17. a3 {[%clk 0:02:13.6]} 17... Nc6 {[%clk 0:02:10.9]}
18. Nxc6 {[%clk 0:02:12.4]} 18... bxc6 {[%clk 0:02:11.8]} 19. Qc3 {[%clk
0:02:10]} 19... Bf7 {[%clk 0:02:07.7]} 20. Qxc6 {[%clk 0:02:03.2]} 20... Qxa3
{[%clk 0:02:07.5]} 21. Bxf6 {[%clk 0:01:51.9]} 21... gxf6 {[%clk 0:02:08.4]} 22.
Qxf6 {[%clk 0:01:51.6]} 22... Qxb3 {[%clk 0:01:14.2]} 23. Rc7 {[%clk 0:01:44.1]}
23... Rf8 {[%clk 0:01:12.4]} 24. Qxf5 {[%clk 0:01:37.9]} 24... Qb6 {[%clk
0:00:54.7]} 25. Qg5+ {[%clk 0:01:36.3]} 25... Qg6 {[%clk 0:00:53.6]} 26. Qe5
{[%clk 0:01:23.5]} 26... Rfe8 {[%clk 0:00:48.5]} 27. Qd4 {[%clk 0:01:22]} 27...
a4 {[%clk 0:00:48.1]} 28. Ra1 {[%clk 0:01:16.2]} 28... a3 {[%clk 0:00:46.4]} 29.
Rc3 {[%clk 0:01:08.3]} 29... a2 {[%clk 0:00:38.7]} 30. Rc2 {[%clk 0:01:07.7]}
30... exd3 {[%clk 0:00:34.6]} 31. exd3 {[%clk 0:01:06]} 31... Qg7 {[%clk
0:00:34.9]} 32. Qxg7+ {[%clk 0:01:04]} 32... Kxg7 {[%clk 0:00:35.8]} 33. Rcxa2
{[%clk 0:01:01.1]} 33... Rxa2 {[%clk 0:00:36.3]} 34. Rxa2 {[%clk 0:01:01.5]}
34... Re1+ {[%clk 0:00:35.5]} 35. Bf1 {[%clk 0:01:01.7]} 35... d4 {[%clk
0:00:36.1]} 36. Re2 {[%clk 0:00:53.3]} 36... Rd1 {[%clk 0:00:35.4]} 37. Re4
{[%clk 0:00:53.1]} 37... Kf6 {[%clk 0:00:24.4]} 38. Rxd4 {[%clk 0:00:49.4]}
38... Be6 {[%clk 0:00:24.7]} 39. Kg2 {[%clk 0:00:48.7]} 39... Ke5 {[%clk
0:00:20.4]} 40. Re4+ {[%clk 0:00:48.6]} 40... Kd6 {[%clk 0:00:20.4]} 41. Be2
{[%clk 0:00:47.6]} 41... Rd2 {[%clk 0:00:19.5]} 42. Re3 {[%clk 0:00:48.1]} 42...
Bd5+ {[%clk 0:00:20]} 43. Bf3 {[%clk 0:00:47.7]} 43... Be6 {[%clk 0:00:19.7]}
44. Be4 {[%clk 0:00:48.1]} 44... h5 {[%clk 0:00:19.4]} 45. h4 {[%clk 0:00:46.6]}
45... Bg4 {[%clk 0:00:17.3]} 46. Bf3 {[%clk 0:00:46.7]} 46... Bf5 {[%clk
0:00:09.5]} 47. Bxh5 {[%clk 0:00:45.4]} 47... Bxd3 {[%clk 0:00:09.8]} 48. Bf3
{[%clk 0:00:44.9]} 48... Bf5 {[%clk 0:00:09.5]} 49. g4 {[%clk 0:00:42.4]} 49...
Be6 {[%clk 0:00:08.3]} 50. Kg3 {[%clk 0:00:41.9]} 50... Rd4 {[%clk 0:00:08.6]}
51. h5 {[%clk 0:00:41.3]} 51... Rb4 {[%clk 0:00:08.2]} 52. h6 {[%clk 0:00:41.1]}
52... Rb8 {[%clk 0:00:08.7]} 53. h7 {[%clk 0:00:40.5]} 53... Rh8 {[%clk
0:00:08.3]} 54. Be4 {[%clk 0:00:40.6]} 1-0

[Event "Late-Titled-Tuesday-Blitz-May-28-2024"]
[Site "Chess.com"]
[Date "2024.05.28"]
[Round "2"]
[White "eljanov"]
[Black "TheLonePika"]
[Result "1-0"]
[WhiteElo "2886"]
[BlackElo "2425"]
[TimeControl "180+1"]
[EndTime "14:18:30 PDT"]
[Termination "eljanov won by resignation"]

1. d4 {[%clk 0:03:00.9]} 1... d5 {[%clk 0:02:59.7]} 2. Bf4 {[%clk 0:03:00.9]}
2... c5 {[%clk 0:02:59.6]} 3. e3 {[%clk 0:03:01.2]} 3... Nc6 {[%clk 0:02:55.9]}
4. Nf3 {[%clk 0:03:01.3]} 4... Nf6 {[%clk 0:02:55.1]} 5. Nbd2 {[%clk 0:03:01]}
5... e6 {[%clk 0:02:54.3]} 6. c3 {[%clk 0:03:00.9]} 6... Nh5 {[%clk 0:02:53.6]}
7. Bg5 {[%clk 0:02:59.7]} 7... f6 {[%clk 0:02:51.4]} 8. Bh4 {[%clk 0:02:57.5]}
8... g6 {[%clk 0:02:50.3]} 9. Be2 {[%clk 0:02:56.6]} 9... Be7 {[%clk 0:02:45.1]}
10. O-O {[%clk 0:02:54.8]} 10... cxd4 {[%clk 0:02:44.1]} 11. Nxd4 {[%clk
0:02:39]} 11... Ng7 {[%clk 0:02:38.6]} 12. Bg3 {[%clk 0:01:46.8]} 12... O-O
{[%clk 0:02:22.4]} 13. e4 {[%clk 0:01:45.7]} 13... e5 {[%clk 0:02:18.5]} 14.
Nxc6 {[%clk 0:01:41.1]} 14... bxc6 {[%clk 0:02:19.4]} 15. Kh1 {[%clk 0:01:31.5]}
15... Rb8 {[%clk 0:02:11.4]} 16. Qc2 {[%clk 0:01:24]} 16... dxe4 {[%clk
0:02:04]} 17. Nc4 {[%clk 0:01:07.1]} 17... Bf5 {[%clk 0:01:54.7]} 18. Rad1
{[%clk 0:00:57.4]} 18... Qc8 {[%clk 0:01:49]} 19. Ne3 {[%clk 0:00:56.4]} 19...
Qb7 {[%clk 0:01:21.7]} 20. b4 {[%clk 0:00:55.9]} 20... Rfd8 {[%clk 0:01:17.4]}
21. Nxf5 {[%clk 0:00:41]} 21... gxf5 {[%clk 0:01:16.1]} 22. f4 {[%clk
0:00:38.8]} 22... exf3 {[%clk 0:01:08.8]} 23. Bxf3 {[%clk 0:00:39.2]} 23... Rxd1
{[%clk 0:01:04.4]} 24. Qxd1 {[%clk 0:00:33.3]} 24... Rd8 {[%clk 0:00:45.9]} 25.
Qb3+ {[%clk 0:00:33.2]} 25... Kh8 {[%clk 0:00:41.7]} 26. Qf7 {[%clk 0:00:31.9]}
26... Rf8 {[%clk 0:00:38.1]} 27. Qc4 {[%clk 0:00:26.1]} 27... e4 {[%clk
0:00:31.3]} 28. Be2 {[%clk 0:00:25.1]} 28... Rc8 {[%clk 0:00:25.1]} 29. h3
{[%clk 0:00:18.2]} 29... c5 {[%clk 0:00:24.5]} 30. b5 {[%clk 0:00:18.5]} 30...
Rd8 {[%clk 0:00:23.4]} 31. a4 {[%clk 0:00:15.8]} 31... Qd7 {[%clk 0:00:21.3]}
32. a5 {[%clk 0:00:15.5]} 32... Qe6 {[%clk 0:00:20.9]} 33. Qxe6 {[%clk
0:00:12.5]} 33... Nxe6 {[%clk 0:00:21.8]} 34. Rxf5 {[%clk 0:00:12.8]} 34... Rd2
{[%clk 0:00:21.6]} 35. Bc4 {[%clk 0:00:12.6]} 35... Ng5 {[%clk 0:00:18.8]} 36.
h4 {[%clk 0:00:07.8]} 36... Rd1+ {[%clk 0:00:17.7]} 37. Kh2 {[%clk 0:00:08]}
37... Rc1 {[%clk 0:00:16.3]} 38. hxg5 {[%clk 0:00:07.7]} 38... Rxc3 {[%clk
0:00:16.4]} 39. gxf6 {[%clk 0:00:08.1]} 39... Bf8 {[%clk 0:00:16.3]} 40. Bd5
{[%clk 0:00:08.2]} 40... e3 {[%clk 0:00:14]} 41. b6 {[%clk 0:00:08.6]} 41...
axb6 {[%clk 0:00:14]} 42. axb6 {[%clk 0:00:09.5]} 1-0

[Event "Late-Titled-Tuesday-Blitz-May-28-2024"]
[Site "Chess.com"]
[Date "2024.05.28"]
[Round "2"]
[White "Alina_Gumerovna"]
[Black "RespectfulDaveOnYouTube"]
[Result "0-1"]
[WhiteElo "2176"]
[BlackElo "2482"]
[TimeControl "180+1"]
[EndTime "14:18:30 PDT"]
[Termination "RespectfulDaveOnYouTube won on time"]

1. e4 {[%clk 0:03:00.3]} 1... d5 {[%clk 0:02:59.9]} 2. exd5 {[%clk 0:03:00.2]}
2... c6 {[%clk 0:03:00.3]} 3. d4 {[%clk 0:02:59.5]} 3... cxd5 {[%clk 0:02:57.4]}
4. g3 {[%clk 0:03:00.1]} 4... Nc6 {[%clk 0:02:52.9]} 5. Bg2 {[%clk 0:02:59.9]}
5... Nf6 {[%clk 0:02:53.6]} 6. Ne2 {[%clk 0:02:57.5]} 6... Bg4 {[%clk
0:02:46.8]} 7. O-O {[%clk 0:02:53.1]} 7... e6 {[%clk 0:02:47]} 8. Bg5 {[%clk
0:02:50.7]} 8... Be7 {[%clk 0:02:45.5]} 9. c3 {[%clk 0:02:31.5]} 9... O-O {[%clk
0:02:40.5]} 10. h3 {[%clk 0:02:27.6]} 10... Bh5 {[%clk 0:02:38.7]} 11. Nd2
{[%clk 0:02:23.2]} 11... b5 {[%clk 0:02:33.3]} 12. g4 {[%clk 0:02:09.5]} 12...
Bg6 {[%clk 0:02:31.6]} 13. Nf4 {[%clk 0:02:10.4]} 13... b4 {[%clk 0:02:14]} 14.
h4 {[%clk 0:01:35.7]} 14... bxc3 {[%clk 0:02:11.3]} 15. bxc3 {[%clk 0:01:34]}
15... Ne8 {[%clk 0:01:24.5]} 16. Bxe7 {[%clk 0:01:28.2]} 16... Qxe7 {[%clk
0:01:22.7]} 17. h5 {[%clk 0:01:29]} 17... Qc7 {[%clk 0:01:14.6]} 18. Qf3 {[%clk
0:00:31.1]} 18... Bc2 {[%clk 0:01:08.6]} 19. a4 {[%clk 0:00:31.8]} 19... Nd6
{[%clk 0:01:01.8]} 20. h6 {[%clk 0:00:21]} 20... Ne4 {[%clk 0:00:56.2]} 21. hxg7
{[%clk 0:00:19.2]} 21... Kxg7 {[%clk 0:00:48.1]} 22. Nh5+ {[%clk 0:00:19.1]}
22... Kh8 {[%clk 0:00:48.6]} 23. Nxe4 {[%clk 0:00:17.6]} 23... f5 {[%clk
0:00:47.5]} 24. Nc5 {[%clk 0:00:05]} 24... Be4 {[%clk 0:00:43.2]} 25. Qe2 {[%clk
0:00:01.7]} 25... Qf7 {[%clk 0:00:37.4]} 26. Nxe4 {[%clk 0:00:02.1]} 26... fxe4
{[%clk 0:00:38.3]} 27. f3 {[%clk 0:00:01.2]} 27... e3 {[%clk 0:00:33]} 28. f4
{[%clk 0:00:01.8]} 28... Qg6 {[%clk 0:00:31.3]} 29. Qxe3 {[%clk 0:00:02.2]}
29... Qxg4 {[%clk 0:00:30.7]} 30. Qh3 {[%clk 0:00:03.1]} 30... Qg6 {[%clk
0:00:28.6]} 31. Kh2 {[%clk 0:00:03.2]} 31... Ne7 {[%clk 0:00:23.6]} 32. Ng3
{[%clk 0:00:03]} 32... Rf6 {[%clk 0:00:20.8]} 33. Rae1 {[%clk 0:00:03.4]} 33...
Rg8 {[%clk 0:00:18.1]} 34. Rf3 {[%clk 0:00:01.7]} 34... Qf7 {[%clk 0:00:13.6]}
35. Re5 {[%clk 0:00:01.6]} 35... Ng6 {[%clk 0:00:12.7]} 36. Ree3 {[%clk
0:00:01.7]} 36... Nxf4 {[%clk 0:00:12.9]} 37. Qh4 {[%clk 0:00:01]} 37... Rgg6
{[%clk 0:00:09.9]} 0-1